[Event "Titled Tuesday Blitz February 01 B 2022"]
[White "Yoo, Christopher Woojin"]
[Black "Kosteniuk, Alexandra"]
[WhiteFideId "30909694"]
[BlackFideId "4128125"]
[WhiteElo "2105"]
[BlackElo "2469"]
[Result "1-0"]
[Round "05"]
[TimeControl "180+1"]
[Date "2022.02.01"]
[WhiteClock "0:00:11"]
[BlackClock "0:00:03"]

1. e4 {[%clk 0:03:00]}  c6 {[%clk 0:02:45]} 2. Nf3 {[%clk 0:03:00]}  d5 {[%clk 0:02:44]} 3. d3 {[%clk 0:03:00]}  dxe4 {[%clk 0:02:42]} 4. dxe4 {[%clk 0:03:01]}  Qxd1+ {[%clk 0:02:42]} 5. Kxd1 {[%clk 0:03:02]}  Nf6 {[%clk 0:02:42]} 6. Nbd2 {[%clk 0:03:02]}  h5 {[%clk 0:02:36]} 7. Ne1 {[%clk 0:03:01]}  g5 {[%clk 0:02:34]} 8. Nd3 {[%clk 0:02:58]}  g4 {[%clk 0:02:29]} 9. f3 {[%clk 0:02:56]}  gxf3 {[%clk 0:02:25]} 10. gxf3 {[%clk 0:02:56]}  Bh6 {[%clk 0:02:25]} 11. Nc4 {[%clk 0:02:51]}  Be6 {[%clk 0:02:20]} 12. Nce5 {[%clk 0:02:43]}  Bxc1 {[%clk 0:02:17]} 13. Kxc1 {[%clk 0:02:43]}  Nbd7 {[%clk 0:02:18]} 14. Nxd7 {[%clk 0:02:41]}  Nxd7 {[%clk 0:02:08]} 15. Rg1 {[%clk 0:02:40]}  f6 {[%clk 0:02:02]} 16. Kd2 {[%clk 0:02:37]}  O-O-O {[%clk 0:01:38]} 17. Ke3 {[%clk 0:02:36]}  Rhg8 {[%clk 0:01:35]} 18. Be2 {[%clk 0:02:35]}  Bf7 {[%clk 0:01:30]} 19. f4 {[%clk 0:02:32]}  Kc7 {[%clk 0:01:24]} 20. f5 {[%clk 0:02:30]}  Ne5 {[%clk 0:01:17]} 21. Nf4 {[%clk 0:02:20]}  h4 {[%clk 0:01:06]} 22. h3 {[%clk 0:01:57]}  a5 {[%clk 0:01:05]} 23. a4 {[%clk 0:01:56]}  b6 {[%clk 0:00:57]} 24. b3 {[%clk 0:01:54]}  c5 {[%clk 0:00:49]} 25. Bh5 {[%clk 0:01:51]}  Bxh5 {[%clk 0:00:41]} 26. Nxh5 {[%clk 0:01:52]}  Nf7 {[%clk 0:00:31]} 27. Nf4 {[%clk 0:01:49]}  Ng5 {[%clk 0:00:31]} 28. Nd5+ {[%clk 0:01:28]}  Kb7 {[%clk 0:00:31]} 29. Nxe7 {[%clk 0:01:23]}  Rge8 {[%clk 0:00:32]} 30. Rxg5 {[%clk 0:01:23]}  fxg5 {[%clk 0:00:29]} 31. f6 {[%clk 0:01:23]}  Rd6 {[%clk 0:00:25]} 32. Rf1 {[%clk 0:01:15]}  Re6 {[%clk 0:00:25]} 33. Ng6 {[%clk 0:00:48]}  Rxe4+ {[%clk 0:00:24]} 34. Kd2 {[%clk 0:00:49]}  Re2+ {[%clk 0:00:10]} 35. Kd1 {[%clk 0:00:49]}  R2e6 {[%clk 0:00:09]} 36. Rf2 {[%clk 0:00:48]}  Rd8+ {[%clk 0:00:09]} 37. Kc1 {[%clk 0:00:47]}  c4 {[%clk 0:00:08]} 38. bxc4 {[%clk 0:00:42]}  Kc6 {[%clk 0:00:08]} 39. Rf5 {[%clk 0:00:38]}  g4 {[%clk 0:00:07]} 40. hxg4 {[%clk 0:00:27]}  h3 {[%clk 0:00:08]} 41. Rf1 {[%clk 0:00:13]}  h2 {[%clk 0:00:06]} 42. g5 {[%clk 0:00:14]}  Rde8 {[%clk 0:00:03]} 43. f7 {[%clk 0:00:11]}  Re1+ {[%clk 0:00:03]} 44. Kb2 {[%clk 0:00:11]} 1-0


[Site "https://www.chess.com"]

[Event "Titled Tuesday Blitz February 01 B 2022"]
[White "Abdrlauf, Elham"]
[Black "Martinez Alcantara, Jose Eduardo"]
[WhiteFideId "1533533"]
[BlackFideId "3805662"]
[WhiteElo "2334"]
[BlackElo "2690"]
[Result "1/2-1/2"]
[Round "06"]
[TimeControl "180+1"]
[Date "2022.02.01"]
[WhiteClock "0:00:03"]
[BlackClock "0:00:18"]

1. e4 {[%clk 0:03:00]}  c5 {[%clk 0:02:57]} 2. Nf3 {[%clk 0:03:01]}  d6 {[%clk 0:02:56]} 3. d4 {[%clk 0:03:01]}  cxd4 {[%clk 0:02:57]} 4. Nxd4 {[%clk 0:03:02]}  Nf6 {[%clk 0:02:57]} 5. Nc3 {[%clk 0:03:02]}  a6 {[%clk 0:02:58]} 6. Bc4 {[%clk 0:03:03]}  e6 {[%clk 0:02:57]} 7. Bb3 {[%clk 0:03:04]}  b5 {[%clk 0:02:56]} 8. f4 {[%clk 0:03:04]}  Be7 {[%clk 0:02:26]} 9. e5 {[%clk 0:03:04]}  dxe5 {[%clk 0:02:27]} 10. fxe5 {[%clk 0:03:05]}  Nfd7 {[%clk 0:02:23]} 11. Bxe6 {[%clk 0:03:05]}  O-O {[%clk 0:02:10]} 12. Bd5 {[%clk 0:03:04]}  Ra7 {[%clk 0:02:10]} 13. e6 {[%clk 0:03:03]}  Nb6 {[%clk 0:02:07]} 14. Bb3 {[%clk 0:03:03]}  Nc4 {[%clk 0:02:01]} 15. Bxc4 {[%clk 0:02:33]}  bxc4 {[%clk 0:02:01]} 16. Be3 {[%clk 0:02:33]}  Rb7 {[%clk 0:01:38]} 17. O-O {[%clk 0:02:22]}  Bxe6 {[%clk 0:01:37]} 18. Nxe6 {[%clk 0:02:22]}  Qxd1 {[%clk 0:01:36]} 19. Raxd1 {[%clk 0:02:14]}  fxe6 {[%clk 0:01:36]} 20. Rxf8+ {[%clk 0:02:15]}  Kxf8 {[%clk 0:01:35]} 21. b3 {[%clk 0:02:15]}  cxb3 {[%clk 0:01:35]} 22. cxb3 {[%clk 0:02:11]}  Nc6 {[%clk 0:01:20]} 23. Ne4 {[%clk 0:02:09]}  Nb4 {[%clk 0:01:21]} 24. Nc5 {[%clk 0:01:41]}  Bxc5 {[%clk 0:01:08]} 25. Bxc5+ {[%clk 0:01:42]}  Kf7 {[%clk 0:01:09]} 26. Bxb4 {[%clk 0:01:39]}  Rxb4 {[%clk 0:01:10]} 27. Rd7+ {[%clk 0:01:34]}  Kf6 {[%clk 0:01:10]} 28. Ra7 {[%clk 0:01:32]}  Rb6 {[%clk 0:01:10]} 29. Kf2 {[%clk 0:01:33]}  Rd6 {[%clk 0:01:05]} 30. Ke3 {[%clk 0:01:32]}  h5 {[%clk 0:01:04]} 31. b4 {[%clk 0:01:13]}  g6 {[%clk 0:00:57]} 32. Rb7 {[%clk 0:00:52]}  Ke5 {[%clk 0:00:48]} 33. a4 {[%clk 0:00:48]}  g5 {[%clk 0:00:29]} 34. b5 {[%clk 0:00:24]}  axb5 {[%clk 0:00:30]} 35. Rxb5+ {[%clk 0:00:25]}  Kf6 {[%clk 0:00:30]} 36. Rb2 {[%clk 0:00:22]}  Rd5 {[%clk 0:00:21]} 37. Ra2 {[%clk 0:00:20]}  Ra5 {[%clk 0:00:22]} 38. Kd4 {[%clk 0:00:20]}  Kf5 {[%clk 0:00:21]} 39. Kc4 {[%clk 0:00:07]}  Kf4 {[%clk 0:00:20]} 40. Kb4 {[%clk 0:00:07]}  Ra8 {[%clk 0:00:21]} 41. a5 {[%clk 0:00:04]}  e5 {[%clk 0:00:21]} 42. Kb5 {[%clk 0:00:03]}  e4 {[%clk 0:00:21]} 43. a6 {[%clk 0:00:02]}  e3 {[%clk 0:00:19]} 44. Kb6 {[%clk 0:00:02]}  Ke4 {[%clk 0:00:19]} 45. Kb7 {[%clk 0:00:02]}  Re8 {[%clk 0:00:16]} 46. a7 {[%clk 0:00:02]}  Kd3 {[%clk 0:00:16]} 47. Ra3+ {[%clk 0:00:01]}  Kd2 {[%clk 0:00:16]} 48. Ra2+ {[%clk 0:00:02]}  Kd3 {[%clk 0:00:17]} 49. Ra3+ {[%clk 0:00:02]}  Kd2 {[%clk 0:00:18]} 50. Ra2+ {[%clk 0:00:03]}  Kd3 {[%clk 0:00:18]} 1/2-1/2


[Site "https://www.chess.com"]

[Event "Titled Tuesday Blitz February 01 B 2022"]
[White "Araujo Sanchez, Josue"]
[Black "Svane, Rasmus"]
[WhiteFideId "6416896"]
[BlackFideId "4657101"]
[WhiteElo "2357"]
[BlackElo "2645"]
[Result "1/2-1/2"]
[Round "06"]
[TimeControl "180+1"]
[Date "2022.02.01"]
[WhiteClock "0:00:06"]
[BlackClock "0:00:02"]

1. d4 {[%clk 0:03:00]}  d5 {[%clk 0:02:59]} 2. Nf3 {[%clk 0:03:00]}  e6 {[%clk 0:02:59]} 3. Bf4 {[%clk 0:03:00]}  Bd6 {[%clk 0:02:59]} 4. e3 {[%clk 0:02:58]}  Ne7 {[%clk 0:02:59]} 5. c3 {[%clk 0:02:46]}  c5 {[%clk 0:02:40]} 6. Nbd2 {[%clk 0:02:37]}  Nbc6 {[%clk 0:02:40]} 7. Bg3 {[%clk 0:02:13]}  Qc7 {[%clk 0:02:38]} 8. dxc5 {[%clk 0:02:09]}  Bxg3 {[%clk 0:02:38]} 9. hxg3 {[%clk 0:02:10]}  a5 {[%clk 0:02:37]} 10. Bb5 {[%clk 0:02:05]}  O-O {[%clk 0:02:34]} 11. b4 {[%clk 0:01:34]}  e5 {[%clk 0:02:26]} 12. a3 {[%clk 0:01:30]}  Rd8 {[%clk 0:02:23]} 13. Kf1 {[%clk 0:01:06]}  Bf5 {[%clk 0:02:13]} 14. Kg1 {[%clk 0:01:03]}  d4 {[%clk 0:02:07]} 15. cxd4 {[%clk 0:00:59]}  exd4 {[%clk 0:02:08]} 16. e4 {[%clk 0:00:58]}  Bg6 {[%clk 0:02:06]} 17. Rb1 {[%clk 0:00:53]}  axb4 {[%clk 0:02:05]} 18. axb4 {[%clk 0:00:53]}  b6 {[%clk 0:01:52]} 19. cxb6 {[%clk 0:00:49]}  Qxb6 {[%clk 0:01:53]} 20. Bc4 {[%clk 0:00:50]}  d3 {[%clk 0:01:41]} 21. Nh4 {[%clk 0:00:49]}  Ne5 {[%clk 0:01:38]} 22. Nxg6 {[%clk 0:00:49]}  hxg6 {[%clk 0:01:36]} 23. Bb3 {[%clk 0:00:36]}  Rac8 {[%clk 0:01:35]} 24. Nf3 {[%clk 0:00:35]}  Ng4 {[%clk 0:01:27]} 25. Qd2 {[%clk 0:00:35]}  Nc6 {[%clk 0:01:00]} 26. Bd5 {[%clk 0:00:25]}  Nce5 {[%clk 0:00:57]} 27. Nxe5 {[%clk 0:00:23]}  Nxe5 {[%clk 0:00:58]} 28. Qf4 {[%clk 0:00:23]}  Rc2 {[%clk 0:00:53]} 29. Rf1 {[%clk 0:00:23]}  Qf6 {[%clk 0:00:51]} 30. Qxf6 {[%clk 0:00:11]}  gxf6 {[%clk 0:00:52]} 31. f3 {[%clk 0:00:12]}  Kg7 {[%clk 0:00:45]} 32. g4 {[%clk 0:00:11]}  d2 {[%clk 0:00:46]} 33. Rd1 {[%clk 0:00:08]}  Nd3 {[%clk 0:00:39]} 34. Kf1 {[%clk 0:00:06]}  Rc1 {[%clk 0:00:27]} 35. Ke2 {[%clk 0:00:05]}  Nxb4 {[%clk 0:00:05]} 36. Rxc1 {[%clk 0:00:04]}  dxc1=Q {[%clk 0:00:06]} 37. Rxc1 {[%clk 0:00:04]}  Nxd5 {[%clk 0:00:07]} 38. exd5 {[%clk 0:00:05]}  Rxd5 {[%clk 0:00:08]} 39. Rd1 {[%clk 0:00:05]}  Ra5 {[%clk 0:00:08]} 40. Kf2 {[%clk 0:00:06]}  Kh6 {[%clk 0:00:09]} 41. Kf1 {[%clk 0:00:06]}  Ra7 {[%clk 0:00:09]} 42. Kf2 {[%clk 0:00:06]}  Kg5 {[%clk 0:00:10]} 43. Kg3 {[%clk 0:00:06]}  Rc7 {[%clk 0:00:09]} 44. Rh1 {[%clk 0:00:07]}  f5 {[%clk 0:00:09]} 45. f4+ {[%clk 0:00:07]}  Kf6 {[%clk 0:00:09]} 46. g5+ {[%clk 0:00:08]}  Ke6 {[%clk 0:00:10]} 47. Re1+ {[%clk 0:00:08]}  Kd5 {[%clk 0:00:10]} 48. Re5+ {[%clk 0:00:08]}  Kd4 {[%clk 0:00:11]} 49. Kf3 {[%clk 0:00:08]}  Kd3 {[%clk 0:00:11]} 50. g3 {[%clk 0:00:09]}  Kd2 {[%clk 0:00:11]} 51. Re3 {[%clk 0:00:09]}  Rc3 {[%clk 0:00:11]} 52. Rxc3 {[%clk 0:00:07]}  Kxc3 {[%clk 0:00:12]} 53. Ke3 {[%clk 0:00:07]}  Kc4 {[%clk 0:00:11]} 54. Ke2 {[%clk 0:00:06]}  Kc3 {[%clk 0:00:10]} 55. Ke3 {[%clk 0:00:06]}  Kc4 {[%clk 0:00:07]} 56. Ke2 {[%clk 0:00:04]}  Kd4 {[%clk 0:00:07]} 57. Kd2 {[%clk 0:00:04]}  Kc5 {[%clk 0:00:05]} 58. Kc3 {[%clk 0:00:03]}  Kd5 {[%clk 0:00:06]} 59. Kd3 {[%clk 0:00:03]}  Kc5 {[%clk 0:00:05]} 60. Kc3 {[%clk 0:00:04]}  Kc6 {[%clk 0:00:03]} 61. Kc4 {[%clk 0:00:04]}  Kd6 {[%clk 0:00:04]} 62. Kd4 {[%clk 0:00:04]}  Ke6 {[%clk 0:00:03]} 63. Kc5 {[%clk 0:00:05]}  f6 {[%clk 0:00:02]} 64. gxf6 {[%clk 0:00:03]}  Kxf6 {[%clk 0:00:03]} 65. Kd6 {[%clk 0:00:04]}  Kf7 {[%clk 0:00:04]} 66. Ke5 {[%clk 0:00:04]}  Ke7 {[%clk 0:00:04]} 67. Kd5 {[%clk 0:00:04]}  Kd7 {[%clk 0:00:04]} 68. Ke5 {[%clk 0:00:05]}  Ke7 {[%clk 0:00:05]} 69. Kd5 {[%clk 0:00:05]}  Kf7 {[%clk 0:00:05]} 70. Kd6 {[%clk 0:00:05]}  Kf6 {[%clk 0:00:05]} 71. Kd7 {[%clk 0:00:06]}  Kf7 {[%clk 0:00:06]} 72. Kd6 {[%clk 0:00:06]}  Kf6 {[%clk 0:00:02]} 73. Kd7 {[%clk 0:00:07]}  Kf7 {[%clk 0:00:02]} 74. Kc6 {[%clk 0:00:05]}  Ke6 {[%clk 0:00:02]} 75. Kc5 {[%clk 0:00:05]}  Ke7 {[%clk 0:00:02]} 76. Kd5 {[%clk 0:00:06]} 1/2-1/2


[Site "https://www.chess.com"]

[Event "Titled Tuesday Blitz February 01 B 2022"]
[White "Babazada, Khazar"]
[Black "Jones, Gawain C B"]
[WhiteFideId "13413554"]
[BlackFideId "409561"]
[WhiteElo "2418"]
[BlackElo "2657"]
[Result "0-1"]
[Round "06"]
[TimeControl "180+1"]
[Date "2022.02.01"]
[WhiteClock "0:00:16"]
[BlackClock "0:00:47"]

1. Nf3 {[%clk 0:03:00]}  Nf6 {[%clk 0:02:59]} 2. g3 {[%clk 0:03:01]}  g6 {[%clk 0:02:59]} 3. Bg2 {[%clk 0:03:02]}  Bg7 {[%clk 0:03:00]} 4. O-O {[%clk 0:03:02]}  c5 {[%clk 0:03:00]} 5. c4 {[%clk 0:03:03]}  O-O {[%clk 0:02:59]} 6. b3 {[%clk 0:03:03]}  Ne4 {[%clk 0:02:56]} 7. d4 {[%clk 0:03:03]}  Nc6 {[%clk 0:02:54]} 8. Bb2 {[%clk 0:03:03]}  d6 {[%clk 0:02:50]} 9. e3 {[%clk 0:02:48]}  Qa5 {[%clk 0:02:33]} 10. Qe2 {[%clk 0:02:42]}  Bg4 {[%clk 0:02:31]} 11. h3 {[%clk 0:02:23]}  Bxf3 {[%clk 0:02:31]} 12. Bxf3 {[%clk 0:02:24]}  Ng5 {[%clk 0:02:31]} 13. Bxc6 {[%clk 0:02:18]}  bxc6 {[%clk 0:02:30]} 14. h4 {[%clk 0:02:16]}  Ne6 {[%clk 0:02:25]} 15. dxc5 {[%clk 0:02:15]}  Qxc5 {[%clk 0:02:20]} 16. Bxg7 {[%clk 0:02:11]}  Kxg7 {[%clk 0:02:21]} 17. Nc3 {[%clk 0:02:11]}  h5 {[%clk 0:02:14]} 18. Rac1 {[%clk 0:02:09]}  Rh8 {[%clk 0:02:09]} 19. Rfd1 {[%clk 0:02:08]}  Qe5 {[%clk 0:02:06]} 20. f4 {[%clk 0:02:06]}  Qc5 {[%clk 0:01:59]} 21. Ne4 {[%clk 0:02:06]}  Qf5 {[%clk 0:01:58]} 22. Nf2 {[%clk 0:02:03]}  a5 {[%clk 0:01:55]} 23. Rd2 {[%clk 0:01:46]}  Rhb8 {[%clk 0:01:51]} 24. e4 {[%clk 0:01:40]}  Qf6 {[%clk 0:01:47]} 25. e5 {[%clk 0:00:57]}  dxe5 {[%clk 0:01:47]} 26. fxe5 {[%clk 0:00:57]}  Qf5 {[%clk 0:01:47]} 27. Rf1 {[%clk 0:00:56]}  Rd8 {[%clk 0:01:40]} 28. Nd3 {[%clk 0:00:51]}  Qh3 {[%clk 0:01:26]} 29. Qf2 {[%clk 0:00:51]}  Rf8 {[%clk 0:01:22]} 30. Nf4 {[%clk 0:00:33]}  Qf5 {[%clk 0:01:14]} 31. Qe3 {[%clk 0:00:28]}  Rad8 {[%clk 0:01:08]} 32. Nd5 {[%clk 0:00:27]}  Qg4 {[%clk 0:01:03]} 33. Nxe7 {[%clk 0:00:14]}  Rxd2 {[%clk 0:01:02]} 34. Qxd2 {[%clk 0:00:15]}  Qxg3+ {[%clk 0:01:02]} 35. Qg2 {[%clk 0:00:16]}  Qxe5 {[%clk 0:00:52]} 36. Nxc6 {[%clk 0:00:16]}  Qc5+ {[%clk 0:00:50]} 37. Kh1 {[%clk 0:00:16]}  Rc8 {[%clk 0:00:47]} 0-1


[Site "https://www.chess.com"]

[Event "Titled Tuesday Blitz February 01 B 2022"]
[White "Bettalli, Francesco"]
[Black "Holt, Conrad"]
[WhiteFideId "2816453"]
[BlackFideId "2034387"]
[WhiteElo "2216"]
[BlackElo "2586"]
[Result "0-1"]
[Round "06"]
[TimeControl "180+1"]
[Date "2022.02.01"]
[WhiteClock "0:00:14"]
[BlackClock "0:00:23"]

1. d4 {[%clk 0:03:00]}  d5 {[%clk 0:02:59]} 2. Nc3 {[%clk 0:03:01]}  Nf6 {[%clk 0:02:58]} 3. Bf4 {[%clk 0:03:01]}  c6 {[%clk 0:02:55]} 4. e3 {[%clk 0:03:01]}  Bf5 {[%clk 0:02:55]} 5. f3 {[%clk 0:03:01]}  e6 {[%clk 0:02:55]} 6. g4 {[%clk 0:03:00]}  Bg6 {[%clk 0:02:54]} 7. h4 {[%clk 0:03:01]}  h5 {[%clk 0:02:54]} 8. g5 {[%clk 0:03:01]}  Ng8 {[%clk 0:02:50]} 9. Bd3 {[%clk 0:03:01]}  Ne7 {[%clk 0:02:49]} 10. Nge2 {[%clk 0:03:01]}  Bxd3 {[%clk 0:02:46]} 11. Qxd3 {[%clk 0:03:02]}  Na6 {[%clk 0:02:46]} 12. a3 {[%clk 0:03:01]}  Ng6 {[%clk 0:02:44]} 13. Bg3 {[%clk 0:02:57]}  Bd6 {[%clk 0:02:44]} 14. Kf2 {[%clk 0:02:58]}  e5 {[%clk 0:02:37]} 15. Qf5 {[%clk 0:02:27]}  Qe7 {[%clk 0:02:37]} 16. Rae1 {[%clk 0:02:21]}  O-O {[%clk 0:02:32]} 17. dxe5 {[%clk 0:02:19]}  Nxe5 {[%clk 0:02:30]} 18. Bxe5 {[%clk 0:02:18]}  Bxe5 {[%clk 0:02:20]} 19. Nf4 {[%clk 0:02:14]}  g6 {[%clk 0:02:18]} 20. Qd3 {[%clk 0:02:01]}  Nc5 {[%clk 0:02:12]} 21. Qd2 {[%clk 0:02:01]}  Rad8 {[%clk 0:02:01]} 22. Nd3 {[%clk 0:01:55]}  Bg7 {[%clk 0:02:01]} 23. Ne2 {[%clk 0:01:48]}  Rfe8 {[%clk 0:01:24]} 24. b4 {[%clk 0:01:35]}  Ne4+ {[%clk 0:01:22]} 25. fxe4 {[%clk 0:01:33]}  dxe4 {[%clk 0:01:23]} 26. Nef4 {[%clk 0:01:33]}  exd3 {[%clk 0:01:18]} 27. cxd3 {[%clk 0:01:34]}  Be5 {[%clk 0:01:07]} 28. Ne2 {[%clk 0:00:45]}  Qd7 {[%clk 0:01:06]} 29. Rd1 {[%clk 0:00:32]}  Qf5+ {[%clk 0:00:52]} 30. Ke1 {[%clk 0:00:32]}  Qf3 {[%clk 0:00:46]} 31. Rf1 {[%clk 0:00:30]}  Qh3 {[%clk 0:00:44]} 32. d4 {[%clk 0:00:19]}  Qxh4+ {[%clk 0:00:42]} 33. Rf2 {[%clk 0:00:19]}  Bg7 {[%clk 0:00:31]} 34. Nf4 {[%clk 0:00:15]}  Rxd4 {[%clk 0:00:25]} 35. Qxd4 {[%clk 0:00:15]}  Bxd4 {[%clk 0:00:25]} 36. Rxd4 {[%clk 0:00:16]}  Rxe3+ {[%clk 0:00:25]} 37. Kf1 {[%clk 0:00:14]}  Qh1# {[%clk 0:00:23]} 0-1


[Site "https://www.chess.com"]

[Event "Titled Tuesday Blitz February 01 B 2022"]
[White "Boros, Denes"]
[Black "Cunha, Lucas Aguiar"]
[WhiteFideId "722340"]
[BlackFideId "2125404"]
[WhiteElo "2464"]
[BlackElo "2361"]
[Result "1-0"]
[Round "06"]
[TimeControl "180+1"]
[Date "2022.02.01"]
[WhiteClock "0:00:53"]
[BlackClock "0:00:25"]

1. d4 {[%clk 0:03:00]}  Nf6 {[%clk 0:02:59]} 2. Nf3 {[%clk 0:03:01]}  c5 {[%clk 0:02:59]} 3. c4 {[%clk 0:02:57]}  cxd4 {[%clk 0:02:59]} 4. Nxd4 {[%clk 0:02:58]}  b6 {[%clk 0:02:58]} 5. Bg5 {[%clk 0:02:55]}  e6 {[%clk 0:02:51]} 6. Nc3 {[%clk 0:02:55]}  Bb7 {[%clk 0:02:50]} 7. Ndb5 {[%clk 0:02:54]}  d6 {[%clk 0:02:49]} 8. Bf4 {[%clk 0:02:50]}  e5 {[%clk 0:02:47]} 9. Bg5 {[%clk 0:02:50]}  a6 {[%clk 0:02:47]} 10. Bxf6 {[%clk 0:02:41]}  gxf6 {[%clk 0:02:47]} 11. Na3 {[%clk 0:02:42]}  f5 {[%clk 0:02:42]} 12. e3 {[%clk 0:02:36]}  Nd7 {[%clk 0:02:38]} 13. Qh5 {[%clk 0:02:35]}  Qf6 {[%clk 0:02:28]} 14. Bd3 {[%clk 0:02:35]}  e4 {[%clk 0:02:24]} 15. Be2 {[%clk 0:02:34]}  d5 {[%clk 0:02:24]} 16. Rc1 {[%clk 0:02:22]}  dxc4 {[%clk 0:02:12]} 17. Nxc4 {[%clk 0:02:18]}  Rg8 {[%clk 0:01:42]} 18. g3 {[%clk 0:02:02]}  Rc8 {[%clk 0:01:33]} 19. O-O {[%clk 0:01:55]}  f4 {[%clk 0:01:09]} 20. Nd5 {[%clk 0:01:43]}  Qd8 {[%clk 0:00:41]} 21. exf4 {[%clk 0:01:03]}  Rc5 {[%clk 0:00:27]} 22. Rfd1 {[%clk 0:00:53]}  Nf6 {[%clk 0:00:25]} 23. Qe5+ {[%clk 0:00:53]} 1-0


[Site "https://www.chess.com"]

[Event "Titled Tuesday Blitz February 01 B 2022"]
[White "Bortnyk, Olexandr"]
[Black "Tang, Andrew"]
[WhiteFideId "14120828"]
[BlackFideId "2059630"]
[WhiteElo "2723"]
[BlackElo "2584"]
[Result "1-0"]
[Round "06"]
[TimeControl "180+1"]
[Date "2022.02.01"]
[WhiteClock "0:00:04"]
[BlackClock "0:00:03"]

1. e4 {[%clk 0:03:00]}  e5 {[%clk 0:02:56]} 2. Nf3 {[%clk 0:03:00]}  Nc6 {[%clk 0:02:56]} 3. Bb5 {[%clk 0:03:00]}  g6 {[%clk 0:02:54]} 4. Nc3 {[%clk 0:02:55]}  Bg7 {[%clk 0:02:49]} 5. d3 {[%clk 0:02:50]}  a6 {[%clk 0:02:47]} 6. Ba4 {[%clk 0:02:44]}  Nge7 {[%clk 0:02:48]} 7. Bg5 {[%clk 0:02:33]}  h6 {[%clk 0:02:38]} 8. Be3 {[%clk 0:02:33]}  O-O {[%clk 0:02:18]} 9. Qd2 {[%clk 0:02:29]}  Kh7 {[%clk 0:02:18]} 10. O-O-O {[%clk 0:02:22]}  d5 {[%clk 0:01:54]} 11. exd5 {[%clk 0:02:18]}  Nxd5 {[%clk 0:01:55]} 12. Nxd5 {[%clk 0:02:17]}  Qxd5 {[%clk 0:01:55]} 13. Bb3 {[%clk 0:02:18]}  Qd6 {[%clk 0:01:44]} 14. h4 {[%clk 0:01:29]}  Bg4 {[%clk 0:01:27]} 15. Rde1 {[%clk 0:01:29]}  Bxf3 {[%clk 0:01:13]} 16. gxf3 {[%clk 0:01:29]}  Nd4 {[%clk 0:01:13]} 17. Bxd4 {[%clk 0:00:58]}  Qxd4 {[%clk 0:00:58]} 18. h5 {[%clk 0:00:58]}  g5 {[%clk 0:00:59]} 19. Re4 {[%clk 0:00:41]}  Qd6 {[%clk 0:00:58]} 20. Rhe1 {[%clk 0:00:36]}  f5 {[%clk 0:00:58]} 21. R4e3 {[%clk 0:00:34]}  Rad8 {[%clk 0:00:57]} 22. Kb1 {[%clk 0:00:34]}  Qd4 {[%clk 0:00:46]} 23. c3 {[%clk 0:00:33]}  Qf4 {[%clk 0:00:45]} 24. Qc2 {[%clk 0:00:31]}  c5 {[%clk 0:00:41]} 25. a3 {[%clk 0:00:21]}  Rd6 {[%clk 0:00:35]} 26. d4 {[%clk 0:00:13]}  cxd4 {[%clk 0:00:25]} 27. cxd4 {[%clk 0:00:14]}  Qxd4 {[%clk 0:00:24]} 28. R1e2 {[%clk 0:00:03]}  Kh8 {[%clk 0:00:16]} 29. Qc7 {[%clk 0:00:03]}  Rd7 {[%clk 0:00:15]} 30. Qa5 {[%clk 0:00:02]}  Rfd8 {[%clk 0:00:10]} 31. Ka2 {[%clk 0:00:02]}  Qd6 {[%clk 0:00:06]} 32. Rc3 {[%clk 0:00:02]}  e4 {[%clk 0:00:06]} 33. Rcc2 {[%clk 0:00:02]}  exf3 {[%clk 0:00:06]} 34. Re6 {[%clk 0:00:03]}  Qd3 {[%clk 0:00:05]} 35. Qb6 {[%clk 0:00:02]}  Qb5 {[%clk 0:00:05]} 36. Rxh6+ {[%clk 0:00:02]}  Bxh6 {[%clk 0:00:02]} 37. Qxh6+ {[%clk 0:00:03]}  Rh7 {[%clk 0:00:02]} 38. Qf6+ {[%clk 0:00:04]}  Rg7 {[%clk 0:00:02]} 39. h6 {[%clk 0:00:04]}  Kh7 {[%clk 0:00:03]} 40. Qxg7# {[%clk 0:00:04]} 1-0


[Site "https://www.chess.com"]

[Event "Titled Tuesday Blitz February 01 B 2022"]
[White "Dobrov, Vladimir"]
[Black "Yoo, Christopher Woojin"]
[WhiteFideId "4136594"]
[BlackFideId "30909694"]
[WhiteElo "2614"]
[BlackElo "2105"]
[Result "0-1"]
[Round "06"]
[TimeControl "180+1"]
[Date "2022.02.01"]
[WhiteClock "0:00:13"]
[BlackClock "0:00:26"]

1. d4 {[%clk 0:03:00]}  Nf6 {[%clk 0:02:58]} 2. c4 {[%clk 0:03:01]}  e6 {[%clk 0:02:57]} 3. Nf3 {[%clk 0:03:01]}  d5 {[%clk 0:02:56]} 4. Nc3 {[%clk 0:03:01]}  h6 {[%clk 0:02:56]} 5. Bf4 {[%clk 0:02:54]}  Bd6 {[%clk 0:02:53]} 6. Bxd6 {[%clk 0:02:48]}  Qxd6 {[%clk 0:02:54]} 7. Rc1 {[%clk 0:02:42]}  O-O {[%clk 0:02:53]} 8. e3 {[%clk 0:02:39]}  Qe7 {[%clk 0:02:50]} 9. Be2 {[%clk 0:02:32]}  dxc4 {[%clk 0:02:48]} 10. Bxc4 {[%clk 0:02:32]}  Rd8 {[%clk 0:02:48]} 11. Qe2 {[%clk 0:02:27]}  c5 {[%clk 0:02:48]} 12. dxc5 {[%clk 0:02:24]}  Qxc5 {[%clk 0:02:48]} 13. O-O {[%clk 0:02:20]}  Nc6 {[%clk 0:02:47]} 14. h3 {[%clk 0:02:15]}  Bd7 {[%clk 0:02:46]} 15. a3 {[%clk 0:02:04]}  Rac8 {[%clk 0:02:44]} 16. Ba2 {[%clk 0:02:04]}  Qe7 {[%clk 0:02:44]} 17. Rfd1 {[%clk 0:01:59]}  Be8 {[%clk 0:02:43]} 18. Bb1 {[%clk 0:01:46]}  Rxd1+ {[%clk 0:02:36]} 19. Rxd1 {[%clk 0:01:45]}  Rd8 {[%clk 0:02:37]} 20. Rc1 {[%clk 0:01:43]}  a6 {[%clk 0:02:18]} 21. Qc2 {[%clk 0:01:42]}  g6 {[%clk 0:02:04]} 22. b4 {[%clk 0:01:34]}  e5 {[%clk 0:02:01]} 23. Ba2 {[%clk 0:01:30]}  Kg7 {[%clk 0:01:57]} 24. Qb2 {[%clk 0:01:26]}  Bd7 {[%clk 0:01:43]} 25. Nd5 {[%clk 0:01:21]}  Nxd5 {[%clk 0:01:43]} 26. Bxd5 {[%clk 0:01:22]}  f6 {[%clk 0:01:43]} 27. e4 {[%clk 0:01:19]}  Be8 {[%clk 0:01:38]} 28. Nd2 {[%clk 0:01:08]}  Nd4 {[%clk 0:01:35]} 29. Nb3 {[%clk 0:01:01]}  Nxb3 {[%clk 0:01:10]} 30. Qxb3 {[%clk 0:01:02]}  Rd6 {[%clk 0:01:10]} 31. Rc8 {[%clk 0:00:59]}  Rd7 {[%clk 0:01:07]} 32. Qc3 {[%clk 0:00:52]}  Bf7 {[%clk 0:00:59]} 33. Bxf7 {[%clk 0:00:49]}  Qxf7 {[%clk 0:01:00]} 34. Kh2 {[%clk 0:00:41]}  h5 {[%clk 0:00:55]} 35. a4 {[%clk 0:00:41]}  Qe6 {[%clk 0:00:38]} 36. Qc5 {[%clk 0:00:40]}  Rf7 {[%clk 0:00:38]} 37. b5 {[%clk 0:00:37]}  axb5 {[%clk 0:00:37]} 38. axb5 {[%clk 0:00:38]}  f5 {[%clk 0:00:36]} 39. exf5 {[%clk 0:00:25]}  Qxf5 {[%clk 0:00:36]} 40. Kg1 {[%clk 0:00:21]}  b6 {[%clk 0:00:27]} 41. Qxb6 {[%clk 0:00:18]}  Qxc8 {[%clk 0:00:26]} 42. Qd6 {[%clk 0:00:13]}  Qc1+ {[%clk 0:00:26]} 0-1


[Site "https://www.chess.com"]